bitfinex/quotes_ETHUSD_20210401
["timestamp","ask_amount","ask_price","bid_price","bid_amount"]
[1617265402892,2.1,1950.0,1949.9,7.05]
[1617265403094,2.1,1950.0,1949.9,2.0]
[1617265403341,2.48,1950.0,1949.9,2.0]
[1617265404541,2.48,1950.0,1949.9,1.8]
[1617265404742,2.48,1950.0,1949.9,25.35]
[1617265404743,2.1,1950.0,1949.9,25.35]
[1617265404943,2.1,1950.0,1949.9,30.35]
[1617265405542,2.1,1950.0,1949.9,6.8]
[1617265405745,2.5,1950.0,1949.8,0.11476056]
[1617265406148,2.5,1950.0,1949.9,2.0]
[1617265406546,2.1,1950.0,1949.9,2.0]
[1617265406747,2.1,1950.0,1949.9,22.75]
[1617265406947,2.1,1950.0,1949.9,27.0]
[1617265407147,2.1,1950.0,1949.9,5.86]
[1617265407347,2.1,1950.0,1949.9,2.0]
[1617265407750,2.1,1950.0,1949.9,16.95]
[1617265408152,2.1,1950.0,1949.9,2.0]
[1617265408356,2.48,1950.0,1949.9,2.0]
[1617265408562,15.34327118,1950.0,1949.9,2.0]
[1617265408763,24.59327118,1950.0,1949.9,2.0]
[1617265408962,16.59327118,1950.0,1949.9,2.0]
[1617265409361,16.59927118,1950.0,1949.9,2.0]
[1617265409562,46.59327118,1950.0,1949.9,2.0]
[1617265409764,54.59927118,1950.0,1949.9,2.0]
[1617265409962,54.69927118,1950.0,1949.9,2.0]
[1617265410761,51.69927118,1950.0,1949.9,2.0]
[1617265410964,37.06927118,1950.0,1949.9,2.0]
[1617265411182,39.24525189,1950.0,1949.9,2.0]
[1617265411583,37.46927118,1950.0,1949.9,2.0]
[1617265411784,46.10314748,1950.0,1949.9,2.0]
[1617265411987,47.30314748,1950.0,1949.9,2.0]
[1617265412188,55.30314748,1950.0,1949.9,2.0]
[1617265412388,31.9,1949.8,1949.1,1.0]
[1617265412589,10.41,1949.2,1949.1,1.0]
[1617265412875,24.38581969,1949.2,1949.1,1.0]
[1617265412987,16.28581969,1949.2,1949.1,1.0]
[1617265414010,18.0618004,1949.2,1949.1,1.0]
[1617265414212,25.7576404,1949.2,1949.1,1.0]
[1617265414411,23.98165969,1949.2,1949.1,1.0]
[1617265414811,19.11344,1949.2,1949.1,1.0]
[1617265415012,11.4176,1949.2,1949.1,1.0]
[1617265415212,1.9,1949.2,1949.1,1.0]
[1617265415613,0.10006894,1949.6,1949.1,1.0]
[1617265415614,2.00006894,1949.6,1949.1,1.0]
[1617265415815,1.9,1949.2,1949.1,1.0]
[1617265416441,1.9,1949.2,1948.6,11.97080131]
[1617265416442,33.48,1949.2,1948.6,11.97080131]
[1617265416641,33.48,1949.2,1948.6,8.12367131]
[1617265416642,11.25,1948.7,1948.6,8.12367131]
[1617265416845,19.887,1948.7,1948.6,8.12367131]
[1617265417041,10.937,1948.7,1948.6,8.12367131]
[1617265417647,18.63462,1948.7,1947.9,3.97601879]
[1617265417842,18.63462,1948.7,1947.8,4.2]
[1617265417843,18.63462,1948.7,1948.2,0.343]
[1617265417844,0.38,1948.5,1948.2,0.343]
[1617265418042,1.9,1948.4,1948.3,0.99926065]
[1617265418440,2.28,1948.4,1947.8,4.2]
[1617265418642,0.38,1948.2,1947.8,1.48]
[1617265418844,1.9,1948.1,1947.8,0.28]
[1617265419474,0.049,1948.5,1948.0,2.0]
[1617265419671,0.049,1948.5,1948.0,0.401]
[1617265419672,0.4,1948.4,1948.0,0.401]
[1617265419871,0.4,1948.2,1948.0,0.401]
[1617265420070,0.049,1948.5,1948.0,0.401]
[1617265420071,0.449,1948.5,1948.0,0.401]
[1617265420271,0.449,1948.5,1948.0,0.351]
[1617265420471,0.4,1948.3,1948.0,0.301]
[1617265420671,0.4,1948.3,1947.7,7.69767]
[1617265420872,0.4,1948.3,1947.6,0.28]
[1617265420873,0.38,1948.1,1947.6,0.28]
[1617265421073,0.38,1948.1,1947.3,31.90326981]
[1617265421276,0.38,1948.1,1947.4,0.385]
[1617265421687,7.70021,1948.0,1947.4,0.385]
[1617265421887,16.56671,1948.0,1947.4,0.385]
[1617265422287,30.56671,1948.0,1947.4,4.945]
[1617265422487,0.41,1947.9,1947.4,0.385]
[1617265422691,30.96671,1948.0,1947.3,18.18117494]
[1617265422692,0.39,1947.6,1947.3,18.18117494]
[1617265422889,0.39,1947.6,1947.3,13.19342339]
[1617265422890,0.4,1947.5,1947.3,13.19342339]
[1617265423287,0.4,1947.5,1947.4,2.0]
[1617265423888,1.1761,1947.6,1947.4,2.0]
[1617265424099,0.28,1947.6,1947.4,2.0]
[1617265424513,1.2912,1947.7,1947.4,2.0]
[1617265424714,7.70104,1947.8,1947.4,2.0]
[1617265425314,14.049,1948.0,1947.4,2.0]
[1617265425514,14.049,1948.0,1947.8,0.18505619]
[1617265425915,0.39,1947.9,1947.8,0.18505619]
[1617265426720,53.9582,1948.0,1947.8,0.18505619]
[1617265426937,23.9482,1948.0,1947.8,0.18505619]
[1617265427138,14.0,1948.0,1947.8,0.18505619]
[1617265427741,14.0,1948.0,1947.9,20.3]
[1617265427942,14.0,1948.0,1947.9,24.84]
[1617265428141,0.09406894,1949.0,1947.9,24.34]
[1617265428343,14.1595,1949.2,1948.6,0.28]
[1617265428344,0.09406894,1949.1,1948.6,0.28]
[1617265428542,14.1595,1949.2,1948.6,0.28]
[1617265428741,0.049,1949.3,1949.0,0.4]
[1617265428942,0.4,1949.6,1949.1,0.385]
[1617265429141,0.4,1949.6,1949.0,0.4]
[1617265429343,0.4,1949.6,1948.7,0.483]
[1617265429344,0.48406894,1949.5,1948.7,0.483]
[1617265429567,0.39,1949.4,1948.6,3.84659]
[1617265429766,0.4,1949.2,1948.8,0.329]
[1617265429968,2.14306894,1949.6,1949.0,0.371]
[1617265429969,2.0,1949.3,1949.0,0.371]
[1617265430166,0.14306894,1949.6,1948.8,0.28]
[1617265430167,2.0,1949.1,1948.8,0.28]
[1617265430368,2.0,1949.1,1948.6,0.4]
[1617265430567,2.0,1949.1,1948.8,0.17382781]
[1617265430568,2.049,1949.1,1948.8,0.17382781]
[1617265430783,33.64928699,1949.1,1948.8,0.17382781]
[1617265430985,32.049,1949.1,1948.8,0.17382781]
[1617265431381,1.67648699,1949.0,1948.8,0.17382781]
[1617265431584,9.64633,1948.9,1948.8,0.17382781]
[1617265431783,17.29863,1948.9,1948.8,0.17382781]
[1617265432402,21.45883753,1948.9,1948.8,0.17382781]
[1617265432591,51.85883753,1948.9,1948.4,2.0]
[1617265432791,17.29863,1948.9,1948.4,2.39]
[1617265432991,10.653,1948.9,1948.4,2.39]
[1617265433191,10.653,1948.9,1948.5,0.39]
[1617265433591,11.043,1948.9,1948.4,2.0]
[1617265433792,1.95,1948.7,1948.4,2.0]
[1617265433990,9.64675,1948.7,1948.4,2.0]
[1617265435613,9.64675,1948.7,1948.5,1.6]
[1617265435815,2.0525442,1949.0,1948.6,20.54]
[1617265435816,1.95,1949.0,1948.6,20.54]
[1617265436016,12.82798,1949.7,1948.6,20.54]
[1617265436017,1.60430819,1950.2,1948.9,19.95]
[1617265436217,0.1,1950.0,1949.0,5.94277112]
[1617265436415,0.1,1950.0,1949.2,0.28]
[1617265436814,0.1,1950.0,1949.2,0.67]
[1617265436815,0.38,1949.8,1949.2,0.67]
[1617265437217,0.38,1949.8,1949.2,1.87]
[1617265437642,0.19406894,1950.0,1949.3,4.7150112]
[1617265437841,0.19406894,1950.0,1949.4,0.385]
[1617265437842,0.51,1950.0,1949.4,0.385]
[1617265438441,0.4,1949.8,1949.4,0.385]
[1617265438842,0.39,1949.6,1949.4,0.385]
[1617265439442,0.1,1950.0,1949.4,0.385]
[1617265439443,0.4,1949.8,1949.4,0.385]
[1617265439641,0.1,1950.0,1949.4,0.765]
[1617265439642,1.39,1949.9,1949.4,0.765]
[1617265439845,1.0,1949.9,1949.4,1.965]
[1617265440471,1.0,1949.9,1949.4,2.12216588]
[1617265440673,1.0,1949.9,1949.4,0.92216588]
[1617265440879,0.39,1949.8,1949.4,0.15716588]
[1617265441078,0.4,1949.7,1949.4,0.15716588]
[1617265441273,8.14196,1949.7,1949.0,2.711]
[1617265441481,0.49406894,1949.6,1949.0,2.301]
[1617265441676,0.49406894,1949.6,1949.0,2.0]
[1617265441875,0.4,1949.6,1949.0,2.0]
[1617265442277,0.4,1949.5,1949.0,2.0]
[1617265442476,0.09406894,1949.5,1949.1,6.3000112]
[1617265442694,1.8936,1949.9,1949.1,6.3000112]
[1617265442695,0.09406894,1949.7,1949.1,6.3000112]
[1617265442890,0.09406894,1949.8,1949.3,0.462]
[1617265443092,1.2,1949.9,1949.3,0.462]
[1617265443292,1.2,1949.9,1949.5,0.38]
[1617265443492,1.2,1949.9,1949.5,0.618]
[1617265443692,1.2,1949.9,1949.7,10.68941]
[1617265443892,1.2,1949.9,1949.8,25.7650112]
[1617265444092,1.2,1949.9,1949.8,38.2253112]
[1617265444491,1.2,1949.9,1949.8,38.6353112]
[1617265444891,1.2,1949.9,1949.8,52.25740607]
[1617265445313,1.2,1949.9,1949.8,52.10740607]
[1617265445513,1.2,1949.9,1949.8,52.28493924]
[1617265445713,1.2,1949.9,1949.8,57.28493924]
[1617265445921,15.2098,1951.3,1949.8,57.28493924]
[1617265445922,0.38,1951.4,1950.2,0.42]
[1617265446118,0.12121212,1951.6,1950.8,24.34]
[1617265446315,0.12121212,1951.6,1950.8,34.9119]
[1617265446714,0.51121212,1951.6,1950.8,34.9119]
[1617265446915,0.12121212,1951.6,1950.8,36.91000561]
[1617265447115,0.12121212,1951.6,1950.8,38.91000561]
[1617265447319,0.12121212,1951.6,1950.8,36.9119]
[1617265447517,0.52121212,1951.6,1950.8,55.21675487]
[1617265447720,0.52121212,1951.6,1950.8,54.82675487]
[1617265447949,0.52121212,1951.6,1950.8,47.14399487]
[1617265448146,0.52121212,1951.6,1950.8,36.5219]
[1617265448345,0.53476313,1951.3,1950.8,36.9019]
[1617265449150,0.53476313,1951.3,1950.9,1.0]
[1617265449348,0.12121212,1951.6,1951.2,28.54]
[1617265449547,0.32763183,1952.0,1951.4,28.54]
[1617265449750,0.02,1952.2,1951.9,0.39]
[1617265449751,0.4,1952.2,1951.9,0.39]
[1617265449950,0.4,1952.2,1952.1,14.34]
[1617265450351,3.22989978,1952.4,1952.1,0.39]
[1617265450572,3.22989978,1952.4,1952.1,2.57312532]
[1617265450771,2.82989978,1952.4,1952.1,2.57312532]
[1617265450972,7.54804018,1952.4,1952.1,2.57312532]
[1617265451171,2.82989978,1952.4,1952.1,2.57312532]
[1617265451371,2.82989978,1952.4,1952.3,6.71]
[1617265451571,2.82989978,1952.4,1952.3,13.2311]
[1617265451973,2.82989978,1952.4,1952.3,12.8311]
[1617265452372,2.82989978,1952.4,1952.3,14.52621465]
[1617265452571,2.82989978,1952.4,1952.3,19.65435505]
[1617265452772,2.82989978,1952.4,1952.3,15.9111]
[1617265452976,3.01989978,1952.4,1952.3,10.0111]
[1617265453191,3.01989978,1952.4,1952.3,6.9311]
[1617265453391,3.01989978,1952.4,1952.2,0.9716]
[1617265453392,2.52989978,1952.4,1952.1,2.18312532]
[1617265453793,2.52989978,1952.4,1952.1,2.59312532]
[1617265453993,2.52989978,1952.4,1952.2,4.7181404]
[1617265454194,2.52989978,1952.4,1952.2,9.7689903]
[1617265454195,9.78e-06,1952.4,1952.2,9.7689903]
[1617265454393,9.78e-06,1952.4,1952.2,7.6438]
[1617265454793,9.78e-06,1952.4,1952.3,0.41]
[1617265455193,9.78e-06,1952.4,1952.3,3.29]
[1617265455394,9.78e-06,1952.4,1952.3,15.97999904]
[1617265455596,0.05709481,1952.6,1952.3,29.7488633]
[1617265455818,0.05709481,1952.6,1952.5,0.4]
[1617265456020,4.72463534,1953.3,1952.5,0.4]
[1617265456021,1.40560352,1953.4,1953.0,19.01818655]
[1617265456224,1.40560352,1953.4,1953.3,7.79]
[1617265456226,1.39960352,1953.4,1953.3,7.79]
[1617265456424,1.39960352,1953.4,1953.3,7.69]
[1617265456425,1.34960352,1953.4,1953.3,7.69]
[1617265456622,1.34960352,1953.4,1953.3,26.95]
[1617265456820,1.34960352,1953.4,1953.3,30.99]
[1617265457221,1.34960352,1953.4,1953.3,31.28]
[1617265457622,5.00091711,1953.5,1953.4,25.7]
[1617265457822,5.00091711,1953.5,1953.4,39.0136]
[1617265458458,0.12121212,1953.7,1953.5,28.15]
[1617265458658,0.12121212,1953.7,1953.6,33.21225444]
[1617265458858,0.12121212,1953.7,1953.6,53.03434931]
[1617265459057,0.12121212,1953.7,1953.6,48.36209487]
[1617265459260,2.12e-06,1953.7,1953.6,50.07931727]
[1617265459459,2.12e-06,1953.7,1953.6,21.92931727]
[1617265459660,0.75721168,1953.9,1953.6,0.39]
[1617265460059,0.75721168,1953.9,1953.8,20.53]
[1617265460260,0.75721168,1953.9,1953.8,27.31609297]
[1617265460660,0.75721168,1953.9,1953.8,27.49213263]
[1617265461288,1.03,1954.0,1953.9,28.15]
[1617265461488,1.62842039,1954.4,1953.9,33.54]
[1617265461689,1.62842039,1954.4,1954.3,21.14]
[1617265461888,1.62842039,1954.4,1954.3,24.3]
[1617265462287,1.32242039,1954.4,1954.3,24.3]
[1617265462488,5.98910226,1954.9,1954.4,28.15]
[1617265462489,1.64038226,1954.5,1954.4,28.15]
[1617265462691,1.59038226,1954.5,1954.4,33.53]
[1617265462888,1.59038226,1954.5,1954.4,34.85739307]
[1617265463288,1.59038226,1954.5,1954.4,33.53]
[1617265463490,0.04317194,1954.5,1954.4,33.15]
[1617265463687,0.04317194,1954.5,1954.4,5.0]
[1617265463890,0.04317194,1954.5,1954.3,2.0]
[1617265465491,0.04317194,1954.5,1954.3,2.4]
[1617265465692,0.04317194,1954.5,1954.4,0.15093742]
[1617265466513,0.44317194,1954.5,1954.4,0.15093742]
[1617265466914,2.44317194,1954.5,1954.4,0.15093742]
[1617265467113,9.94317194,1954.5,1954.4,0.15093742]
[1617265467313,2.44317194,1954.5,1954.4,0.15093742]
[1617265467513,2.04317194,1954.5,1954.4,0.15093742]
[1617265468116,10.99317194,1954.5,1954.4,0.14340656]
[1617265468317,2.04317194,1954.5,1954.4,0.14340656]
[1617265468940,2.57708256,1954.5,1954.4,0.14340656]
[1617265469141,2.57708256,1954.5,1954.4,6.29340656]
[1617265469741,2.57708256,1954.5,1954.4,0.14340656]
[1617265470141,2.04317194,1954.5,1954.4,0.14340656]
[1617265470341,0.04317194,1954.5,1954.4,0.14340656]
[1617265470641,20.52317194,1954.5,1954.4,0.12845028]
[1617265471040,2.42317194,1954.5,1954.4,0.12845028]
[1617265471665,2.04317194,1954.5,1954.4,0.12845028]
[1617265472065,1.79317194,1954.5,1954.4,6.12845028]
[1617265472466,1.79317194,1954.5,1954.4,7.36630777]
[1617265472467,1.94e-06,1954.5,1954.4,7.36630777]
[1617265472667,0.01340186,1954.7,1954.6,3.55213057]
[1617265473065,0.01340186,1954.7,1954.6,6.59795356]
[1617265473268,5.81780365,1954.9,1954.6,3.50333824]
[1617265473465,5.81780365,1954.9,1954.5,0.28]
[1617265473666,10.96816176,1955.0,1954.7,1.1749]
[1617265474066,7.67193,1954.9,1954.7,1.1749]
[1617265474308,7.67193,1954.9,1954.6,4.66758648]
[1617265474309,12.17016532,1954.9,1954.6,4.66758648]
[1617265474708,22.65,1954.7,1954.6,4.66758648]
[1617265475506,2.0468306,1954.6,1954.5,0.14792625]
[1617265476126,13.4568306,1954.6,1954.5,0.14792625]
[1617265476527,12.85207375,1954.5,1954.3,2.0]
[1617265476725,7.67519,1954.4,1954.3,2.0]
[1617265477338,7.67519,1954.4,1954.3,1.75]
[1617265477539,3.08519,1954.4,1954.3,1.75]
[1617265477741,7.63328622,1954.4,1953.5,4.92]
[1617265477943,7.63328622,1954.4,1953.4,15.1512]
[1617265477945,17.15798622,1954.4,1953.4,15.1512]
[1617265478142,0.049,1954.2,1953.5,4.6]
[1617265478343,0.049,1954.2,1953.3,4.76674861]
[1617265478344,0.4,1953.8,1953.3,4.76674861]
[1617265478545,6.2715,1953.8,1953.4,18.48]
[1617265478744,1.1246,1953.6,1953.4,21.96]
[1617265478941,1.1246,1953.6,1953.4,3.76]
[1617265479146,1.1246,1953.6,1953.5,2.0]
[1617265479342,8.80241,1953.6,1953.5,2.0]
[1617265479546,1.1246,1953.6,1953.5,2.0]
[1617265479943,2.1315,1953.9,1953.5,2.0]
[1617265480151,1.386,1953.9,1953.5,2.0]
[1617265480353,0.4,1953.9,1953.5,2.0]
[1617265480550,0.38,1953.8,1953.5,2.0]
[1617265480750,10.2355,1954.0,1953.5,2.0]
[1617265481351,0.049,1954.1,1953.5,2.0]
[1617265481546,0.4,1953.8,1953.5,2.0]
[1617265481747,0.459,1954.1,1953.5,2.0]
[1617265481944,0.459,1954.1,1953.6,0.329]
[1617265482166,10.23374,1954.2,1953.6,0.329]
[1617265482367,10.23374,1954.2,1953.5,2.0]
[1617265482567,10.23374,1954.2,1953.8,0.371]
[1617265482769,2.0,1954.1,1953.8,0.371]
[1617265482968,0.09406894,1954.4,1954.2,4.07046709]
[1617265483170,12.85207375,1954.5,1954.2,4.07046709]
[1617265483369,12.85207375,1954.5,1954.2,3.0]
[1617265483567,12.85207375,1954.5,1954.0,8.00084]
[1617265483768,0.4,1954.4,1954.0,8.00084]
[1617265483967,0.0064217,1954.4,1954.0,0.329]
[1617265484167,0.0064217,1954.4,1954.0,9.08400866]
[1617265484567,0.0064217,1954.4,1954.0,8.00114]
[1617265484795,0.0064217,1954.4,1954.1,4.92272384]
[1617265484997,0.0064217,1954.4,1954.1,10.39686095]
[1617265485196,0.0064217,1954.4,1954.1,3.83568]
[1617265485396,0.0064217,1954.4,1954.2,7.67141]
[1617265485596,0.0064217,1954.4,1954.3,12.26855233]
[1617265485796,0.0064217,1954.4,1954.3,15.24855233]
[1617265485998,0.7020217,1954.4,1954.3,3.14855233]
[1617265486195,0.7020217,1954.4,1954.3,0.16855233]
[1617265486397,0.3120217,1954.4,1954.0,5.0940431]
[1617265486596,0.3120217,1954.4,1954.1,4.52272384]
[1617265487001,0.3120217,1954.4,1954.2,0.38]
[1617265487200,12.85207375,1954.5,1954.1,9.85834505]
[1617265487420,12.85207375,1954.5,1954.4,30.64]
[1617265487421,11.5313469,1954.5,1954.4,30.64]
[1617265487619,11.5313469,1954.5,1954.4,3.0]
[1617265488020,11.5313469,1954.5,1954.3,4.76390796]
[1617265488224,11.9313469,1954.5,1954.3,4.76390796]
[1617265488820,11.5313469,1954.5,1954.4,33.84392946]
[1617265489021,11.5313469,1954.5,1954.4,36.93]
[1617265489625,11.5313469,1954.5,1954.4,39.88863858]
[1617265489819,11.5313469,1954.5,1954.4,38.13]
[1617265490447,11.5313469,1954.5,1954.4,8.78]
[1617265490646,11.5313469,1954.5,1954.4,3.0]
[1617265491046,11.5313469,1954.5,1954.4,10.66991]
[1617265491447,11.5313469,1954.5,1954.4,3.0]
[1617265491650,11.5313469,1954.5,1954.4,6.26]
[1617265491850,11.5313469,1954.5,1954.4,3.26]
[1617265492047,11.5313469,1954.5,1954.3,7.76390796]
[1617265492447,0.0249,1954.4,1954.3,7.76390796]
[1617265492663,0.04238197,1954.4,1954.3,7.76390796]
[1617265492864,0.04238197,1954.4,1954.3,15.66390796]
[1617265493066,2.04238197,1954.4,1954.3,15.66390796]
[1617265493265,2.04238197,1954.4,1954.3,21.20657235]
[1617265493467,2.04238197,1954.4,1954.3,20.62057033]
[1617265494065,2.04238197,1954.4,1954.3,19.42057033]
[1617265494266,2.04238197,1954.4,1954.3,17.67638175]
[1617265494466,2.04238197,1954.4,1954.3,21.46537101]
[1617265494669,2.04238197,1954.4,1954.3,17.67638175]
[1617265495698,2.04238197,1954.4,1954.3,10.97638175]
[1617265495910,2.04238197,1954.4,1954.3,7.75638175]
[1617265496097,2.42238197,1954.4,1954.3,7.75638175]
[1617265496293,2.42238197,1954.4,1954.3,4.76390796]
[1617265496699,10.09585197,1954.4,1954.3,4.76390796]
[1617265498524,10.09585197,1954.4,1953.5,15.6707]
[1617265498525,10.23892091,1954.4,1953.6,4.7658342]
[1617265498722,2.0,1953.7,1953.6,4.7658342]
[1617265499121,0.4,1953.9,1953.6,7.8258342]
[1617265499322,1.85870918,1954.4,1953.6,7.8258342]
[1617265499323,12.2354,1953.7,1953.6,7.8258342]
[1617265499921,12.6154,1953.7,1953.6,7.8258342]
[1617265500128,12.6154,1953.7,1953.6,4.7658342]
[1617265500552,12.6154,1953.7,1953.6,7.7658342]
[1617265500754,12.6354,1953.7,1953.6,7.7658342]
[1617265500950,12.6354,1953.7,1953.6,4.7658342]
[1617265501350,14.6826188,1953.7,1953.6,4.7658342]
[1617265501549,14.2826188,1953.7,1953.6,4.7658342]
[1617265503573,2.0,1953.7,1953.6,4.7658342]
[1617265504574,10.07636,1953.7,1953.6,4.7658342]
[1617265506603,9.67636,1953.7,1953.6,4.7658342]
[1617265507397,9.67636,1953.7,1953.6,7.7658342]
[1617265507799,9.67636,1953.7,1953.6,4.7658342]
[1617265509454,0.21308197,1954.4,1953.6,4.7658342]
[1617265509455,2.0,1954.1,1953.6,9.25976366]
[1617265509655,0.30715091,1954.4,1953.6,10.7366342]
[1617265509656,1.62,1953.7,1953.6,10.7366342]
[1617265509854,1.62,1953.7,1953.6,15.2119406]
[1617265510056,1.62,1953.7,1953.6,18.5519406]
[1617265510456,2.01,1953.7,1953.6,14.0766342]
[1617265511060,1.62,1953.7,1953.6,14.0766342]
[1617265511462,1.62,1953.7,1953.6,21.5519406]
[1617265511856,1.62,1953.7,1953.6,17.0766342]
[1617265512063,1.62,1953.7,1953.6,21.5519406]
[1617265512256,1.62,1953.7,1953.6,22.7519406]
[1617265512660,1.62,1953.7,1953.6,49.21403547]
[1617265512868,0.21308197,1954.4,1953.7,43.19179487]
[1617265513066,0.21308197,1954.4,1953.8,5.66914528]
[1617265513265,0.21308197,1954.4,1953.9,8.304]
[1617265513458,0.21308197,1954.4,1954.0,5.66914528]
[1617265513671,0.21308197,1954.4,1954.0,11.67334528]
[1617265514071,0.60308197,1954.4,1954.0,6.0042]
[1617265514272,0.60308197,1954.4,1954.0,8.7642]
[1617265514673,0.21308197,1954.4,1954.0,18.73820376]
[1617265515072,0.21308197,1954.4,1954.1,7.46914528]
[1617265515272,0.21308197,1954.4,1954.1,11.38914528]
[1617265516074,0.21308197,1954.4,1954.2,7.67234]
[1617265516300,0.21308197,1954.4,1954.3,25.88805592]
[1617265516301,1.21308197,1954.4,1954.3,25.88805592]
[1617265516501,11.5313469,1954.5,1954.3,27.48805592]
[1617265516701,11.5313469,1954.5,1954.3,35.34409713]
[1617265516903,11.5313469,1954.5,1954.4,28.55]
[1617265517101,10.96816176,1955.0,1954.5,31.15]
[1617265517302,10.96816176,1955.0,1954.7,10.67013]
[1617265517502,10.96816176,1955.0,1954.8,4.50128742]
[1617265517702,10.96816176,1955.0,1954.8,11.18418742]
[1617265517903,10.96816176,1955.0,1954.8,6.6829]
[1617265518106,10.96816176,1955.0,1954.9,24.50128742]
[1617265518306,10.96816176,1955.0,1954.9,29.16128742]
[1617265518705,10.96816176,1955.0,1954.9,24.66]
[1617265521162,10.96816176,1955.0,1954.9,24.76597646]
[1617265521959,11.96816176,1955.0,1954.9,24.76597646]
[1617265522360,11.96816176,1955.0,1954.9,4.76597646]
[1617265522961,14.35816176,1955.0,1954.9,0.10597646]
[1617265523162,25.35816176,1955.0,1954.9,0.10597646]
[1617265523765,24.96816176,1955.0,1954.9,0.10597646]
[1617265524569,25.34816176,1955.0,1954.9,0.10597646]
[1617265524970,24.96816176,1955.0,1954.9,0.10597646]
[1617265525373,24.96816176,1955.0,1954.9,10.50597646]
[1617265525570,24.96816176,1955.0,1954.9,13.50597646]
[1617265526069,24.96816176,1955.0,1954.9,0.10597646]
[1617265526070,25.34816176,1955.0,1954.9,0.10597646]
[1617265526468,24.96816176,1955.0,1954.9,0.10597646]
[1617265526892,24.96816176,1955.0,1954.9,0.48597646]
[1617265527095,24.96816176,1955.0,1954.9,7.98726388]
[1617265527298,24.96816176,1955.0,1954.9,9.93996388]
[1617265527494,24.96816176,1955.0,1954.9,38.99996388]
[1617265528092,24.96816176,1955.0,1954.9,38.98996388]
[1617265528292,24.96816176,1955.0,1954.9,34.48867646]
[1617265528493,24.96816176,1955.0,1954.9,45.11350646]
[1617265528895,21.96816176,1955.0,1954.9,45.11350646]
[1617265529318,21.96816176,1955.0,1954.9,44.71350646]
[1617265530519,21.96816176,1955.0,1954.9,23.22350646]
[1617265530720,21.96816176,1955.0,1954.9,20.89080646]
[1617265531321,21.96816176,1955.0,1954.9,13.89080646]
[1617265531948,21.96816176,1955.0,1954.9,13.87990646]
[1617265532148,21.96816176,1955.0,1954.9,3.65507646]
[1617265532347,21.96816176,1955.0,1954.9,6.84507646]
[1617265532947,21.96816176,1955.0,1954.9,13.84507646]
[1617265533150,21.96816176,1955.0,1954.9,27.77551008]
[1617265533348,21.96816176,1955.0,1954.9,47.42310495]
[1617265533548,21.96816176,1955.0,1954.9,57.72730495]
[1617265533748,21.96816176,1955.0,1954.9,55.22146133]
[1617265534349,21.96816176,1955.0,1954.9,54.02146133]
[1617265534572,21.96816176,1955.0,1954.9,52.65726133]
[1617265535172,21.96816176,1955.0,1954.9,42.03516646]
[1617265536173,21.96816176,1955.0,1954.9,18.06057646]
[1617265536174,22.35816176,1955.0,1954.9,18.06057646]
[1617265536371,22.35816176,1955.0,1954.9,0.09507646]
[1617265536971,21.96816176,1955.0,1954.9,0.09507646]
[1617265537218,22.35816176,1955.0,1954.9,0.09507646]
[1617265538021,29.64106176,1955.0,1954.9,0.09507646]
[1617265538421,29.67226176,1955.0,1954.9,0.09507646]
[1617265538823,31.33011384,1955.0,1954.9,0.09507646]
[1617265539222,30.87226176,1955.0,1954.9,0.09507646]
[1617265539622,32.53011384,1955.0,1954.9,0.09507646]
[1617265540067,32.53011384,1955.0,1954.7,4.76298955]
[1617265540269,26.05,1954.8,1954.7,4.76298955]
[1617265540469,28.05,1954.8,1954.7,4.76298955]
[1617265540667,29.49515208,1954.8,1954.7,4.76298955]
[1617265541267,28.05,1954.8,1954.7,4.76298955]
[1617265541868,9.67496,1954.8,1954.7,4.76298955]
[1617265542071,10.23327,1954.9,1954.7,8.96298955]
[1617265542072,2.0,1954.9,1954.7,8.96298955]
[1617265542269,19.99936176,1955.0,1954.8,15.45876228]
[1617265542467,19.99936176,1955.0,1954.8,19.11876228]
[1617265542669,19.99936176,1955.0,1954.8,3.66]
[1617265542870,19.99936176,1955.0,1954.8,7.67036]
[1617265542871,17.98425285,1955.0,1954.8,7.67036]
[1617265543069,17.98425285,1955.0,1954.7,3.0]
[1617265543070,4.52370011,1954.9,1954.7,3.0]
[1617265543271,0.4,1954.8,1954.7,3.0]
[1617265543470,0.4,1954.8,1954.6,4.91888944]
[1617265543471,17.36548178,1954.8,1954.6,4.91888944]
[1617265543668,21.91569576,1954.7,1954.6,4.91888944]
[1617265544068,21.91569576,1954.7,1954.6,4.76151382]
[1617265544469,21.91569576,1954.7,1951.5,27.5]
[1617265544470,55.13971899,1954.7,1953.8,4.76275999]
[1617265544676,55.13971899,1954.7,1953.4,0.329]
[1617265544677,0.9326,1954.0,1953.4,0.329]
[1617265544872,0.39,1953.8,1953.4,0.329]
[1617265545076,0.8793,1953.7,1953.4,0.329]
[1617265545677,7.1754,1954.0,1953.4,0.329]
[1617265545881,7.1754,1954.0,1953.4,3.329]
[1617265546277,7.5754,1954.0,1953.8,0.17853024]
[1617265546678,6.2428,1954.0,1953.8,0.17853024]
[1617265546880,0.09406894,1954.3,1953.9,20.99]
[1617265547080,1.57990607,1954.9,1954.0,9.0776656]
[1617265547282,1.57990607,1954.9,1954.1,0.329]
[1617265547479,0.38,1954.7,1954.1,0.329]
[1617265547921,1.57990607,1954.9,1954.1,0.329]
[1617265548122,0.41,1954.8,1954.3,0.371]
[1617265549123,0.41,1954.6,1954.2,3.0]
[1617265549322,6.06757167,1954.9,1954.2,3.0]
[1617265549323,0.4,1954.5,1954.2,3.0]
[1617265549521,0.4,1954.4,1954.2,3.0]
[1617265550127,0.4,1954.3,1954.2,3.0]
[1617265551528,0.39,1954.5,1954.2,3.0]